[Event "Titled Tuesday Blitz February 07 Late 2023"]
[White "Dubov, Daniil"]
[Black "tuschessCM1"]
[WhiteFideId "24126055"]
[WhiteElo "2708"]
[BlackElo "2670"]
[Result "1-0"]
[Round "02"]
[TimeControl "180+2"]
[Date "2023.02.07"]
[WhiteClock "0:00:59"]
[BlackClock "0:00:05"]

1. e4 {[%clk 0:03:00]}  c6 {[%clk 0:02:57]} 2. d4 {[%clk 0:02:58]}  d5 {[%clk 0:02:58]} 3. e5 {[%clk 0:02:59]}  c5 {[%clk 0:02:57]} 4. dxc5 {[%clk 0:02:56]}  e6 {[%clk 0:02:57]} 5. Bd3 {[%clk 0:02:51]}  Nd7 {[%clk 0:02:57]} 6. Nf3 {[%clk 0:02:50]}  Nxc5 {[%clk 0:02:57]} 7. O-O {[%clk 0:02:51]}  Nxd3 {[%clk 0:02:57]} 8. cxd3 {[%clk 0:02:51]}  Bd7 {[%clk 0:02:56]} 9. Nc3 {[%clk 0:02:49]}  Ne7 {[%clk 0:02:57]} 10. Ne2 {[%clk 0:02:45]}  h6 {[%clk 0:01:41]} 11. Be3 {[%clk 0:02:31]}  g6 {[%clk 0:01:33]} 12. Rc1 {[%clk 0:02:20]}  Bg7 {[%clk 0:01:31]} 13. Qd2 {[%clk 0:02:19]}  Nc6 {[%clk 0:01:07]} 14. d4 {[%clk 0:01:57]}  Ne7 {[%clk 0:00:49]} 15. Ng3 {[%clk 0:01:49]}  Kf8 {[%clk 0:00:38]} 16. h4 {[%clk 0:01:47]}  Kg8 {[%clk 0:00:37]} 17. h5 {[%clk 0:01:28]}  Nf5 {[%clk 0:00:26]} 18. hxg6 {[%clk 0:01:12]}  fxg6 {[%clk 0:00:27]} 19. Nxf5 {[%clk 0:01:12]}  gxf5 {[%clk 0:00:26]} 20. g3 {[%clk 0:01:11]}  Be8 {[%clk 0:00:25]} 21. Kg2 {[%clk 0:01:10]}  Bc6 {[%clk 0:00:16]} 22. Rh1 {[%clk 0:01:09]}  Qf8 {[%clk 0:00:16]} 23. Rh4 {[%clk 0:01:07]}  Be8 {[%clk 0:00:16]} 24. Rch1 {[%clk 0:01:05]}  h5 {[%clk 0:00:15]} 25. Ng5 {[%clk 0:01:05]}  Qe7 {[%clk 0:00:15]} 26. Nh3 {[%clk 0:01:05]}  Kf8 {[%clk 0:00:08]} 27. Bg5 {[%clk 0:01:04]}  Qf7 {[%clk 0:00:07]} 28. Nf4 {[%clk 0:01:03]}  Qg8 {[%clk 0:00:05]} 29. Qb4+ {[%clk 0:00:59]}  Kf7 {[%clk 0:00:05]} 30. Qe7# {[%clk 0:00:59]} 1-0


[Site "https://www.chess.com"]

[Event "Titled Tuesday Blitz February 07 Late 2023"]
[White "Duda, Jan-Krzysztof"]
[Black "Ozer, Omer Faruk"]
[WhiteFideId "1170546"]
[BlackFideId "6354564"]
[WhiteElo "2724"]
[BlackElo "2360"]
[Result "1-0"]
[Round "02"]
[TimeControl "180+2"]
[Date "2023.02.07"]
[WhiteClock "0:01:20"]
[BlackClock "0:00:01"]

1. c4 {[%clk 0:02:58]}  e5 {[%clk 0:02:59]} 2. Nc3 {[%clk 0:02:58]}  Nc6 {[%clk 0:02:59]} 3. Nf3 {[%clk 0:02:58]}  g6 {[%clk 0:02:42]} 4. e3 {[%clk 0:02:55]}  Bg7 {[%clk 0:02:39]} 5. d4 {[%clk 0:02:56]}  d6 {[%clk 0:02:34]} 6. Be2 {[%clk 0:02:56]}  Nge7 {[%clk 0:02:32]} 7. d5 {[%clk 0:02:54]}  Nb8 {[%clk 0:02:32]} 8. e4 {[%clk 0:02:52]}  a5 {[%clk 0:02:32]} 9. h4 {[%clk 0:02:50]}  h6 {[%clk 0:02:31]} 10. h5 {[%clk 0:02:40]}  g5 {[%clk 0:02:29]} 11. Nh2 {[%clk 0:02:41]}  O-O {[%clk 0:02:21]} 12. g4 {[%clk 0:02:40]}  Na6 {[%clk 0:02:20]} 13. Be3 {[%clk 0:02:40]}  c6 {[%clk 0:02:19]} 14. Nf1 {[%clk 0:02:39]}  cxd5 {[%clk 0:02:13]} 15. cxd5 {[%clk 0:02:39]}  Bd7 {[%clk 0:02:13]} 16. f3 {[%clk 0:02:39]}  Rb8 {[%clk 0:02:00]} 17. Bb5 {[%clk 0:02:36]}  Nc7 {[%clk 0:01:55]} 18. Bb6 {[%clk 0:02:30]}  Nc8 {[%clk 0:01:34]} 19. Bxa5 {[%clk 0:02:19]}  b6 {[%clk 0:01:33]} 20. Bxd7 {[%clk 0:02:18]}  bxa5 {[%clk 0:01:34]} 21. Bxc8 {[%clk 0:02:17]}  Qxc8 {[%clk 0:01:34]} 22. Rh2 {[%clk 0:02:17]}  Na6 {[%clk 0:01:27]} 23. Rc1 {[%clk 0:02:16]}  Nc5 {[%clk 0:01:25]} 24. Ne3 {[%clk 0:02:16]}  Qd7 {[%clk 0:01:21]} 25. Nf5 {[%clk 0:02:14]}  Rb4 {[%clk 0:01:19]} 26. b3 {[%clk 0:02:10]}  Kh7 {[%clk 0:01:10]} 27. Rhc2 {[%clk 0:02:10]}  Bf6 {[%clk 0:01:09]} 28. Kf2 {[%clk 0:02:11]}  Bd8 {[%clk 0:01:09]} 29. Kg2 {[%clk 0:02:11]}  Bb6 {[%clk 0:01:08]} 30. Nb1 {[%clk 0:02:11]}  Ra8 {[%clk 0:01:03]} 31. Rc3 {[%clk 0:02:07]}  a4 {[%clk 0:01:01]} 32. Nd2 {[%clk 0:02:08]}  axb3 {[%clk 0:01:00]} 33. axb3 {[%clk 0:02:08]}  Rd4 {[%clk 0:00:39]} 34. Qc2 {[%clk 0:01:56]}  Ba5 {[%clk 0:00:30]} 35. Nxd4 {[%clk 0:01:55]}  Bxc3 {[%clk 0:00:20]} 36. Qxc3 {[%clk 0:01:56]}  exd4 {[%clk 0:00:20]} 37. Qxd4 {[%clk 0:01:57]}  Ra2 {[%clk 0:00:20]} 38. Kh3 {[%clk 0:01:55]}  Qe7 {[%clk 0:00:12]} 39. b4 {[%clk 0:01:51]}  Nd7 {[%clk 0:00:09]} 40. Nc4 {[%clk 0:01:27]}  Ne5 {[%clk 0:00:02]} 41. Nxe5 {[%clk 0:01:24]}  dxe5 {[%clk 0:00:03]} 42. Qb6 {[%clk 0:01:24]}  Ra3 {[%clk 0:00:01]} 43. Rc7 {[%clk 0:01:20]} 1-0


[Site "https://www.chess.com"]

[Event "Titled Tuesday Blitz February 07 Late 2023"]
[White "Kalogeris, Ioannis"]
[Black "Sanal, Vahap"]
[WhiteFideId "4239563"]
[BlackFideId "6300545"]
[WhiteElo "2423"]
[BlackElo "2600"]
[Result "1-0"]
[Round "02"]
[TimeControl "180+2"]
[Date "2023.02.07"]
[WhiteClock "0:01:19"]
[BlackClock "0:00:41"]

1. e4 {[%clk 0:03:00]}  c5 {[%clk 0:03:00]} 2. Nf3 {[%clk 0:03:00]}  d6 {[%clk 0:03:00]} 3. d4 {[%clk 0:02:59]}  cxd4 {[%clk 0:03:01]} 4. Nxd4 {[%clk 0:03:00]}  Nf6 {[%clk 0:03:02]} 5. Nc3 {[%clk 0:03:00]}  a6 {[%clk 0:03:02]} 6. g3 {[%clk 0:03:00]}  e5 {[%clk 0:02:55]} 7. Nf3 {[%clk 0:03:00]}  Be7 {[%clk 0:02:54]} 8. Nh4 {[%clk 0:03:00]}  O-O {[%clk 0:02:53]} 9. Ng2 {[%clk 0:02:58]}  Be6 {[%clk 0:02:46]} 10. Ne3 {[%clk 0:02:58]}  Nbd7 {[%clk 0:02:47]} 11. Bg2 {[%clk 0:02:53]}  Nc5 {[%clk 0:02:47]} 12. O-O {[%clk 0:02:52]}  Rc8 {[%clk 0:02:46]} 13. Ncd5 {[%clk 0:02:40]}  Ncxe4 {[%clk 0:02:35]} 14. Nxf6+ {[%clk 0:02:37]}  Nxf6 {[%clk 0:02:36]} 15. Bxb7 {[%clk 0:02:36]}  Rc7 {[%clk 0:02:34]} 16. Bxa6 {[%clk 0:02:33]}  Bh3 {[%clk 0:02:23]} 17. Re1 {[%clk 0:02:32]}  d5 {[%clk 0:02:17]} 18. Bf1 {[%clk 0:02:32]}  Be6 {[%clk 0:02:06]} 19. Bd2 {[%clk 0:02:22]}  d4 {[%clk 0:02:06]} 20. Ng2 {[%clk 0:02:22]}  Qd5 {[%clk 0:01:59]} 21. c4 {[%clk 0:02:19]}  Qd6 {[%clk 0:01:52]} 22. Rc1 {[%clk 0:02:01]}  Rb8 {[%clk 0:01:45]} 23. b4 {[%clk 0:01:58]}  Bg4 {[%clk 0:01:39]} 24. Qb3 {[%clk 0:01:44]}  Bf3 {[%clk 0:01:27]} 25. Qxf3 {[%clk 0:01:43]}  h6 {[%clk 0:01:04]} 26. c5 {[%clk 0:01:42]}  Qe6 {[%clk 0:01:04]} 27. Bc4 {[%clk 0:01:32]}  Qh3 {[%clk 0:01:02]} 28. Nh4 {[%clk 0:01:27]}  Ra7 {[%clk 0:00:46]} 29. Qf5 {[%clk 0:01:20]}  Qxf5 {[%clk 0:00:43]} 30. Nxf5 {[%clk 0:01:19]}  Bf8 {[%clk 0:00:41]} 31. Rxe5 {[%clk 0:01:19]} 1-0


[Site "https://www.chess.com"]

[Event "Titled Tuesday Blitz February 07 Late 2023"]
[White "Vachier-Lagrave, Maxime"]
[Black "Godzwon, Iwo"]
[WhiteFideId "623539"]
[BlackFideId "21802483"]
[WhiteElo "2742"]
[BlackElo "2394"]
[Result "1-0"]
[Round "02"]
[TimeControl "180+2"]
[Date "2023.02.07"]
[WhiteClock "0:02:08"]
[BlackClock "0:00:56"]

1. d4 {[%clk 0:03:00]}  Nf6 {[%clk 0:02:58]} 2. c4 {[%clk 0:03:00]}  e6 {[%clk 0:02:59]} 3. Nc3 {[%clk 0:02:59]}  Bb4 {[%clk 0:02:59]} 4. Nf3 {[%clk 0:02:58]}  d5 {[%clk 0:02:57]} 5. Qa4+ {[%clk 0:02:55]}  Nc6 {[%clk 0:02:57]} 6. e3 {[%clk 0:02:55]}  O-O {[%clk 0:02:56]} 7. Bd2 {[%clk 0:02:55]}  Bxc3 {[%clk 0:02:55]} 8. bxc3 {[%clk 0:02:53]}  Ne4 {[%clk 0:02:56]} 9. Bd3 {[%clk 0:02:50]}  f5 {[%clk 0:02:54]} 10. cxd5 {[%clk 0:02:49]}  exd5 {[%clk 0:02:54]} 11. c4 {[%clk 0:02:49]}  Be6 {[%clk 0:02:51]} 12. Rb1 {[%clk 0:02:45]}  Rb8 {[%clk 0:02:04]} 13. O-O {[%clk 0:02:38]}  dxc4 {[%clk 0:02:03]} 14. Bxc4 {[%clk 0:02:37]}  Bxc4 {[%clk 0:02:04]} 15. Qxc4+ {[%clk 0:02:38]}  Kh8 {[%clk 0:02:04]} 16. Bb4 {[%clk 0:02:28]}  Rf6 {[%clk 0:02:02]} 17. Rfc1 {[%clk 0:02:20]}  Rc8 {[%clk 0:01:24]} 18. Be1 {[%clk 0:02:16]}  b6 {[%clk 0:01:21]} 19. Qb5 {[%clk 0:02:14]}  Ne7 {[%clk 0:01:19]} 20. Ne5 {[%clk 0:02:12]}  c6 {[%clk 0:01:15]} 21. Qa4 {[%clk 0:02:10]}  Rc7 {[%clk 0:01:12]} 22. f3 {[%clk 0:02:10]}  Ng5 {[%clk 0:01:03]} 23. Bh4 {[%clk 0:02:10]}  h6 {[%clk 0:00:56]} 24. f4 {[%clk 0:02:08]} 1-0


[Site "https://www.chess.com"]

[Event "Titled Tuesday Blitz February 07 Late 2023"]
[White "Martinez Alcantara, Jose Eduardo"]
[Black "Manukyan, Sargis A."]
[WhiteFideId "3805662"]
[BlackFideId "13303970"]
[WhiteElo "2619"]
[BlackElo "2158"]
[Result "1-0"]
[Round "02"]
[TimeControl "180+2"]
[Date "2023.02.07"]
[WhiteClock "0:02:17"]
[BlackClock "0:01:45"]

1. e4 {[%clk 0:03:00]}  c5 {[%clk 0:02:59]} 2. Nf3 {[%clk 0:02:58]}  d6 {[%clk 0:02:59]} 3. c3 {[%clk 0:02:58]}  Nf6 {[%clk 0:02:58]} 4. h3 {[%clk 0:02:59]}  e6 {[%clk 0:02:55]} 5. Bd3 {[%clk 0:02:59]}  Nc6 {[%clk 0:02:55]} 6. Bc2 {[%clk 0:02:58]}  Be7 {[%clk 0:02:55]} 7. d4 {[%clk 0:02:57]}  cxd4 {[%clk 0:02:56]} 8. cxd4 {[%clk 0:02:58]}  d5 {[%clk 0:02:56]} 9. e5 {[%clk 0:02:57]}  Ne4 {[%clk 0:02:57]} 10. Nc3 {[%clk 0:02:57]}  Nxc3 {[%clk 0:02:54]} 11. bxc3 {[%clk 0:02:58]}  O-O {[%clk 0:02:49]} 12. Qd3 {[%clk 0:02:52]}  g6 {[%clk 0:02:48]} 13. h4 {[%clk 0:02:47]}  Kg7 {[%clk 0:02:07]} 14. h5 {[%clk 0:02:46]}  Rh8 {[%clk 0:02:07]} 15. Qe3 {[%clk 0:02:30]}  Kg8 {[%clk 0:01:52]} 16. hxg6 {[%clk 0:02:15]}  hxg6 {[%clk 0:01:51]} 17. Rxh8+ {[%clk 0:02:16]}  Kxh8 {[%clk 0:01:52]} 18. Qh6+ {[%clk 0:02:16]}  Kg8 {[%clk 0:01:52]} 19. Ng5 {[%clk 0:02:17]}  Bxg5 {[%clk 0:01:49]} 20. Bxg5 {[%clk 0:02:17]}  Qf8 {[%clk 0:01:50]} 21. Qh4 {[%clk 0:02:17]}  Qg7 {[%clk 0:01:46]} 22. Bf6 {[%clk 0:02:16]}  Qh7 {[%clk 0:01:46]} 23. Qxh7+ {[%clk 0:02:17]}  Kxh7 {[%clk 0:01:45]} 24. O-O-O {[%clk 0:02:17]} 1-0


[Site "https://www.chess.com"]

[Event "Titled Tuesday Blitz February 07 Late 2023"]
[White "Bluebaum, Matthias"]
[Black "Suder, Jakub"]
[WhiteFideId "24651516"]
[BlackFideId "1195310"]
[WhiteElo "2669"]
[BlackElo "2244"]
[Result "1-0"]
[Round "02"]
[TimeControl "180+2"]
[Date "2023.02.07"]
[WhiteClock "0:00:16"]
[BlackClock "0:00:30"]

1. d4 {[%clk 0:03:00]}  d5 {[%clk 0:02:59]} 2. c4 {[%clk 0:03:01]}  e6 {[%clk 0:02:59]} 3. Nc3 {[%clk 0:03:01]}  a6 {[%clk 0:02:59]} 4. cxd5 {[%clk 0:03:01]}  exd5 {[%clk 0:03:00]} 5. a3 {[%clk 0:03:02]}  Nf6 {[%clk 0:03:00]} 6. Bg5 {[%clk 0:03:02]}  c6 {[%clk 0:02:53]} 7. e3 {[%clk 0:03:02]}  Bd6 {[%clk 0:02:53]} 8. Bd3 {[%clk 0:03:02]}  Nbd7 {[%clk 0:02:48]} 9. Qc2 {[%clk 0:02:56]}  Nf8 {[%clk 0:02:46]} 10. Nf3 {[%clk 0:02:53]}  Ne6 {[%clk 0:02:41]} 11. Bh4 {[%clk 0:02:53]}  Be7 {[%clk 0:02:39]} 12. b4 {[%clk 0:02:50]}  b5 {[%clk 0:02:34]} 13. Qb3 {[%clk 0:02:35]}  a5 {[%clk 0:02:31]} 14. O-O {[%clk 0:02:31]}  a4 {[%clk 0:02:30]} 15. Qc2 {[%clk 0:02:32]}  Nd7 {[%clk 0:02:21]} 16. Bg3 {[%clk 0:02:20]}  h5 {[%clk 0:02:18]} 17. Ne5 {[%clk 0:02:07]}  Nxe5 {[%clk 0:02:15]} 18. Bxe5 {[%clk 0:02:04]}  f6 {[%clk 0:02:15]} 19. Bg6+ {[%clk 0:02:04]}  Kf8 {[%clk 0:02:14]} 20. Bf4 {[%clk 0:02:04]}  Nxf4 {[%clk 0:02:09]} 21. exf4 {[%clk 0:02:05]}  Bd6 {[%clk 0:02:04]} 22. Ne2 {[%clk 0:02:04]}  Bd7 {[%clk 0:02:00]} 23. h4 {[%clk 0:01:58]}  Be8 {[%clk 0:01:59]} 24. g3 {[%clk 0:01:54]}  Bxg6 {[%clk 0:01:57]} 25. Qxg6 {[%clk 0:01:55]}  Qe8 {[%clk 0:01:57]} 26. Qc2 {[%clk 0:01:55]}  Kf7 {[%clk 0:01:53]} 27. Rae1 {[%clk 0:01:54]}  Qd7 {[%clk 0:01:52]} 28. Nc1 {[%clk 0:01:53]}  Rae8 {[%clk 0:01:46]} 29. Nd3 {[%clk 0:01:46]}  Rxe1 {[%clk 0:01:44]} 30. Rxe1 {[%clk 0:01:47]}  Re8 {[%clk 0:01:44]} 31. Rc1 {[%clk 0:01:47]}  Rc8 {[%clk 0:01:42]} 32. Kg2 {[%clk 0:01:36]}  g6 {[%clk 0:01:37]} 33. Re1 {[%clk 0:01:16]}  Re8 {[%clk 0:01:35]} 34. Rc1 {[%clk 0:01:17]}  Rc8 {[%clk 0:01:35]} 35. Nb2 {[%clk 0:01:12]}  Qf5 {[%clk 0:01:30]} 36. Qxf5 {[%clk 0:01:04]}  gxf5 {[%clk 0:01:31]} 37. Nd1 {[%clk 0:01:05]}  Kg6 {[%clk 0:01:26]} 38. Ne3 {[%clk 0:01:04]}  Rc7 {[%clk 0:01:26]} 39. Kf3 {[%clk 0:01:05]}  Bf8 {[%clk 0:01:10]} 40. Ke2 {[%clk 0:00:51]}  Kf7 {[%clk 0:01:07]} 41. Nxf5 {[%clk 0:00:51]}  Ke6 {[%clk 0:01:07]} 42. Ne3 {[%clk 0:00:50]}  Kd7 {[%clk 0:01:06]} 43. Kf3 {[%clk 0:00:45]}  Rc8 {[%clk 0:01:05]} 44. g4 {[%clk 0:00:39]}  hxg4+ {[%clk 0:01:05]} 45. Kxg4 {[%clk 0:00:40]}  Bd6 {[%clk 0:01:01]} 46. Nf5 {[%clk 0:00:40]}  Rg8+ {[%clk 0:01:01]} 47. Kf3 {[%clk 0:00:41]}  Rh8 {[%clk 0:00:54]} 48. Rh1 {[%clk 0:00:40]}  Bf8 {[%clk 0:00:53]} 49. h5 {[%clk 0:00:38]}  Ke6 {[%clk 0:00:53]} 50. Ne3 {[%clk 0:00:37]}  Bh6 {[%clk 0:00:52]} 51. Rc1 {[%clk 0:00:35]}  Rc8 {[%clk 0:00:51]} 52. Ng4 {[%clk 0:00:32]}  Bf8 {[%clk 0:00:46]} 53. Re1+ {[%clk 0:00:30]}  Kf5 {[%clk 0:00:45]} 54. Re2 {[%clk 0:00:24]}  Rd8 {[%clk 0:00:41]} 55. Ne3+ {[%clk 0:00:17]}  Ke6 {[%clk 0:00:41]} 56. Re1 {[%clk 0:00:17]}  Kf7 {[%clk 0:00:40]} 57. Rc1 {[%clk 0:00:16]}  Rd6 {[%clk 0:00:38]} 58. Nf5 {[%clk 0:00:17]}  Re6 {[%clk 0:00:39]} 59. Rg1 {[%clk 0:00:16]}  Re8 {[%clk 0:00:30]} 60. h6 {[%clk 0:00:16]}  Be7 {[%clk 0:00:30]} 61. Re1 {[%clk 0:00:16]}  Bf8 {[%clk 0:00:29]} 62. Rxe8 {[%clk 0:00:15]}  Kxe8 {[%clk 0:00:30]} 63. h7 {[%clk 0:00:16]} 1-0


[Site "https://www.chess.com"]

[Event "Titled Tuesday Blitz February 07 Late 2023"]
[White "Martynov, Pavel"]
[Black "Paravyan, David"]
[WhiteFideId "4101260"]
[BlackFideId "4194985"]
[WhiteElo "2414"]
[BlackElo "2601"]
[Result "0-1"]
[Round "02"]
[TimeControl "180+2"]
[Date "2023.02.07"]
[WhiteClock "0:00:01"]
[BlackClock "0:00:10"]

1. e4 {[%clk 0:03:00]}  e5 {[%clk 0:02:59]} 2. Nf3 {[%clk 0:03:00]}  Nf6 {[%clk 0:02:59]} 3. Nxe5 {[%clk 0:03:00]}  d6 {[%clk 0:02:59]} 4. Nf3 {[%clk 0:03:00]}  Nxe4 {[%clk 0:03:00]} 5. d4 {[%clk 0:03:01]}  d5 {[%clk 0:03:00]} 6. Bd3 {[%clk 0:03:02]}  Bf5 {[%clk 0:03:00]} 7. O-O {[%clk 0:03:02]}  Be7 {[%clk 0:03:00]} 8. Re1 {[%clk 0:03:01]}  O-O {[%clk 0:02:59]} 9. c4 {[%clk 0:03:01]}  Nc6 {[%clk 0:02:59]} 10. cxd5 {[%clk 0:02:55]}  Qxd5 {[%clk 0:03:00]} 11. Nc3 {[%clk 0:02:55]}  Nxc3 {[%clk 0:02:59]} 12. bxc3 {[%clk 0:02:54]}  Rae8 {[%clk 0:02:52]} 13. c4 {[%clk 0:02:33]}  Qd7 {[%clk 0:02:51]} 14. d5 {[%clk 0:02:18]}  Bf6 {[%clk 0:01:30]} 15. Bxf5 {[%clk 0:01:24]}  Rxe1+ {[%clk 0:00:52]} 16. Qxe1 {[%clk 0:01:20]}  Qxf5 {[%clk 0:00:52]} 17. dxc6 {[%clk 0:00:51]}  Bxa1 {[%clk 0:00:49]} 18. Ba3 {[%clk 0:00:52]}  Rb8 {[%clk 0:00:48]} 19. Qxa1 {[%clk 0:00:45]}  bxc6 {[%clk 0:00:48]} 20. Ne1 {[%clk 0:00:32]}  Rb1 {[%clk 0:00:43]} 21. Qc3 {[%clk 0:00:32]}  Qe4 {[%clk 0:00:29]} 22. Bb4 {[%clk 0:00:31]}  h5 {[%clk 0:00:19]} 23. h3 {[%clk 0:00:22]}  c5 {[%clk 0:00:19]} 24. Ba5 {[%clk 0:00:21]}  c6 {[%clk 0:00:18]} 25. Kh2 {[%clk 0:00:14]}  f6 {[%clk 0:00:18]} 26. Qg3 {[%clk 0:00:08]}  Rxe1 {[%clk 0:00:15]} 27. Bxe1 {[%clk 0:00:08]}  Qxe1 {[%clk 0:00:16]} 28. Qb8+ {[%clk 0:00:08]}  Kh7 {[%clk 0:00:12]} 29. Qxa7 {[%clk 0:00:05]}  Qxf2 {[%clk 0:00:12]} 30. a4 {[%clk 0:00:06]}  Qf4+ {[%clk 0:00:12]} 31. Kg1 {[%clk 0:00:05]}  Qxc4 {[%clk 0:00:13]} 32. a5 {[%clk 0:00:05]}  Qc1+ {[%clk 0:00:13]} 33. Kh2 {[%clk 0:00:05]}  Qf4+ {[%clk 0:00:13]} 34. Kg1 {[%clk 0:00:05]}  c4 {[%clk 0:00:13]} 35. Qc5 {[%clk 0:00:04]}  Qc1+ {[%clk 0:00:07]} 36. Kh2 {[%clk 0:00:04]}  Qf4+ {[%clk 0:00:07]} 37. Kg1 {[%clk 0:00:04]}  Qc1+ {[%clk 0:00:07]} 38. Kh2 {[%clk 0:00:05]}  c3 {[%clk 0:00:08]} 39. Qxh5+ {[%clk 0:00:03]}  Qh6 {[%clk 0:00:08]} 40. Qf5+ {[%clk 0:00:01]}  Qg6 {[%clk 0:00:09]} 41. Qxg6+ {[%clk 0:00:01]}  Kxg6 {[%clk 0:00:09]} 42. a6 {[%clk 0:00:02]}  c2 {[%clk 0:00:09]} 43. a7 {[%clk 0:00:03]}  c1=Q {[%clk 0:00:10]} 44. a8=Q {[%clk 0:00:04]}  Qf4+ {[%clk 0:00:10]} 45. Kh1 {[%clk 0:00:05]}  Qe4 {[%clk 0:00:09]} 46. Qc8 {[%clk 0:00:03]}  Qe1+ {[%clk 0:00:08]} 47. Kh2 {[%clk 0:00:03]}  Qe5+ {[%clk 0:00:09]} 48. Kg1 {[%clk 0:00:03]}  c5 {[%clk 0:00:10]} 49. Qg4+ {[%clk 0:00:02]}  Qg5 {[%clk 0:00:10]} 50. Qe4+ {[%clk 0:00:02]}  Qf5 {[%clk 0:00:11]} 51. Qe3 {[%clk 0:00:02]}  Qe5 {[%clk 0:00:09]} 52. Qd3+ {[%clk 0:00:01]}  Kh6 {[%clk 0:00:10]} 0-1


[Site "https://www.chess.com"]

[Event "Titled Tuesday Blitz February 07 Late 2023"]
[White "Hakobyan, Aram"]
[Black "Crevatin, Leo"]
[WhiteFideId "13306677"]
[BlackFideId "1726307"]
[WhiteElo "2608"]
[BlackElo "2292"]
[Result "1-0"]
[Round "02"]
[TimeControl "180+2"]
[Date "2023.02.07"]
[WhiteClock "0:01:45"]
[BlackClock "0:00:23"]

1. Nf3 {[%clk 0:03:00]}  Nf6 {[%clk 0:02:59]} 2. c4 {[%clk 0:03:01]}  b6 {[%clk 0:02:57]} 3. g3 {[%clk 0:03:01]}  Bb7 {[%clk 0:02:57]} 4. Bg2 {[%clk 0:03:02]}  g6 {[%clk 0:02:57]} 5. d4 {[%clk 0:03:01]}  Bg7 {[%clk 0:02:57]} 6. O-O {[%clk 0:02:59]}  O-O {[%clk 0:02:53]} 7. Qc2 {[%clk 0:02:59]}  Na6 {[%clk 0:02:22]} 8. Nc3 {[%clk 0:02:57]}  Nb4 {[%clk 0:02:18]} 9. Qb1 {[%clk 0:02:55]}  a5 {[%clk 0:02:12]} 10. a3 {[%clk 0:02:54]}  Na6 {[%clk 0:02:12]} 11. Rd1 {[%clk 0:02:54]}  d6 {[%clk 0:02:01]} 12. e4 {[%clk 0:02:52]}  Nd7 {[%clk 0:01:59]} 13. Be3 {[%clk 0:02:50]}  e5 {[%clk 0:01:48]} 14. Qc2 {[%clk 0:02:45]}  exd4 {[%clk 0:01:43]} 15. Bxd4 {[%clk 0:02:43]}  Re8 {[%clk 0:01:38]} 16. Bxg7 {[%clk 0:02:33]}  Kxg7 {[%clk 0:01:39]} 17. Nd4 {[%clk 0:02:32]}  Qf6 {[%clk 0:01:33]} 18. e5 {[%clk 0:02:29]}  dxe5 {[%clk 0:01:30]} 19. Bxb7 {[%clk 0:02:20]}  exd4 {[%clk 0:01:30]} 20. Bxa8 {[%clk 0:02:19]}  Rxa8 {[%clk 0:01:20]} 21. Qe4 {[%clk 0:02:16]}  dxc3 {[%clk 0:01:12]} 22. Qxa8 {[%clk 0:02:14]}  cxb2 {[%clk 0:01:12]} 23. Rab1 {[%clk 0:02:13]}  Nac5 {[%clk 0:01:10]} 24. Qd5 {[%clk 0:02:03]}  Ne5 {[%clk 0:01:04]} 25. Rxb2 {[%clk 0:01:57]}  Nf3+ {[%clk 0:01:02]} 26. Kg2 {[%clk 0:01:57]}  Qxb2 {[%clk 0:00:57]} 27. Qxf3 {[%clk 0:01:58]}  Qc2 {[%clk 0:00:52]} 28. Rd4 {[%clk 0:01:56]}  a4 {[%clk 0:00:45]} 29. h4 {[%clk 0:01:56]}  h5 {[%clk 0:00:44]} 30. Rf4 {[%clk 0:01:55]}  f5 {[%clk 0:00:40]} 31. Rd4 {[%clk 0:01:55]}  Ne4 {[%clk 0:00:32]} 32. Rd7+ {[%clk 0:01:48]}  Kg8 {[%clk 0:00:23]} 33. Rxc7 {[%clk 0:01:45]} 1-0


[Site "https://www.chess.com"]

[Event "Titled Tuesday Blitz February 07 Late 2023"]
[White "Koellner, Ruben Gideon"]
[Black "Bortnyk, Olexandr"]
[WhiteFideId "12993093"]
[BlackFideId "14120828"]
[WhiteElo "2426"]
[BlackElo "2605"]
[Result "0-1"]
[Round "02"]
[TimeControl "180+2"]
[Date "2023.02.07"]
[WhiteClock "0:00:01"]
[BlackClock "0:01:48"]

1. d4 {[%clk 0:03:00]}  d6 {[%clk 0:03:00]} 2. e4 {[%clk 0:02:56]}  Nf6 {[%clk 0:03:00]} 3. Nd2 {[%clk 0:02:56]}  e5 {[%clk 0:02:59]} 4. dxe5 {[%clk 0:02:55]}  dxe5 {[%clk 0:03:00]} 5. Ngf3 {[%clk 0:02:56]}  Bg4 {[%clk 0:02:55]} 6. h3 {[%clk 0:02:50]}  Bxf3 {[%clk 0:02:54]} 7. Qxf3 {[%clk 0:02:51]}  Bc5 {[%clk 0:02:49]} 8. Bc4 {[%clk 0:02:48]}  O-O {[%clk 0:02:49]} 9. O-O {[%clk 0:02:48]}  Nbd7 {[%clk 0:02:49]} 10. Qe2 {[%clk 0:02:47]}  c6 {[%clk 0:02:47]} 11. a4 {[%clk 0:02:47]}  a5 {[%clk 0:02:46]} 12. Nf3 {[%clk 0:02:38]}  Nh5 {[%clk 0:02:41]} 13. Kh2 {[%clk 0:02:29]}  Qf6 {[%clk 0:02:37]} 14. g3 {[%clk 0:02:25]}  Qe7 {[%clk 0:02:30]} 15. Kg2 {[%clk 0:02:23]}  Nhf6 {[%clk 0:02:28]} 16. Bg5 {[%clk 0:02:14]}  h6 {[%clk 0:02:23]} 17. Bd2 {[%clk 0:02:13]}  Rfd8 {[%clk 0:02:22]} 18. Rad1 {[%clk 0:02:11]}  Nf8 {[%clk 0:02:22]} 19. Nh4 {[%clk 0:02:04]}  Ne6 {[%clk 0:02:20]} 20. Nf5 {[%clk 0:02:02]}  Qe8 {[%clk 0:02:20]} 21. c3 {[%clk 0:02:01]}  Rd7 {[%clk 0:02:17]} 22. Qf3 {[%clk 0:01:59]}  Rad8 {[%clk 0:02:07]} 23. Bxh6 {[%clk 0:00:22]}  Rxd1 {[%clk 0:02:03]} 24. Rxd1 {[%clk 0:00:10]}  Rxd1 {[%clk 0:02:04]} 25. Bxe6 {[%clk 0:00:02]}  fxe6 {[%clk 0:01:57]} 26. Nxg7 {[%clk 0:00:02]}  Qg6 {[%clk 0:01:58]} 27. Qxd1 {[%clk 0:00:02]}  Qxh6 {[%clk 0:01:48]} 28. Nxe6 {[%clk 0:00:01]}  Be7 {[%clk 0:01:48]} 0-1


[Site "https://www.chess.com"]